[Event "Late-Titled-Tuesday-Blitz-September-19-2023"]
[Site "Chess.com"]
[Date "2023.09.19"]
[Round "8"]
[White "angryspacevoid"]
[Black "Laico"]
[Result "0-1"]
[WhiteElo "2500"]
[BlackElo "2413"]
[TimeControl "180+1"]
[EndTime "15:27:25 PDT"]
[Termination "Laico won by resignation"]

1. e4 {[%clk 0:03:00.9]} 1... e6 {[%clk 0:03:00.1]} 2. d4 {[%clk 0:02:55.5]}
2... d5 {[%clk 0:03:00.2]} 3. Nc3 {[%clk 0:02:56]} 3... Nf6 {[%clk 0:03:00.3]}
4. e5 {[%clk 0:02:56.1]} 4... Nfd7 {[%clk 0:03:00.6]} 5. f4 {[%clk 0:02:56.7]}
5... c5 {[%clk 0:03:01.3]} 6. Nf3 {[%clk 0:02:57.1]} 6... Nc6 {[%clk 0:03:02.1]}
7. Be3 {[%clk 0:02:57.7]} 7... cxd4 {[%clk 0:03:02.9]} 8. Nxd4 {[%clk
0:02:58.3]} 8... Bc5 {[%clk 0:03:03.6]} 9. Qd2 {[%clk 0:02:55]} 9... O-O {[%clk
0:03:04]} 10. Be2 {[%clk 0:02:53.2]} 10... a6 {[%clk 0:03:04.4]} 11. O-O {[%clk
0:02:53.4]} 11... Nxd4 {[%clk 0:03:02.2]} 12. Bxd4 {[%clk 0:02:53.2]} 12... Qb6
{[%clk 0:03:03.1]} 13. Bxc5 {[%clk 0:02:51.9]} 13... Nxc5 {[%clk 0:03:04]} 14.
Kh1 {[%clk 0:02:49]} 14... Qxb2 {[%clk 0:03:03.6]} 15. f5 {[%clk 0:02:40.4]}
15... exf5 {[%clk 0:02:41.9]} 16. Rab1 {[%clk 0:02:31.5]} 16... Qa3 {[%clk
0:02:28.7]} 17. Nxd5 {[%clk 0:02:31]} 17... Ne4 {[%clk 0:02:17.9]} 18. Qf4
{[%clk 0:02:27.8]} 18... Be6 {[%clk 0:02:12.8]} 19. Ne3 {[%clk 0:02:21.4]} 19...
Nd2 {[%clk 0:01:54.6]} 20. Nxf5 {[%clk 0:02:19]} 20... Nxf1 {[%clk 0:01:34.3]}
21. Nxg7 {[%clk 0:02:00.1]} 21... Qe3 {[%clk 0:01:15.3]} 22. Qxf1 {[%clk
0:01:59]} 22... Kxg7 {[%clk 0:01:10.6]} 23. Qf6+ {[%clk 0:01:58.6]} 23... Kg8
{[%clk 0:01:09.9]} 24. Rf1 {[%clk 0:01:59.5]} 24... Rfd8 {[%clk 0:00:45.3]} 25.
Bd3 {[%clk 0:01:46.7]} 25... Rxd3 {[%clk 0:00:42]} 26. cxd3 {[%clk 0:01:46.1]}
26... Qxd3 {[%clk 0:00:42.9]} 27. Qg5+ {[%clk 0:01:43.2]} 27... Qg6 {[%clk
0:00:42.5]} 28. Qe3 {[%clk 0:01:42]} 28... Bd5 {[%clk 0:00:42.4]} 29. Rf2 {[%clk
0:01:39.7]} 29... Rc8 {[%clk 0:00:36]} 30. h3 {[%clk 0:01:39]} 30... Rc2 {[%clk
0:00:34.6]} 31. Rxc2 {[%clk 0:01:35.1]} 31... Qxc2 {[%clk 0:00:35.5]} 32. Qg5+
{[%clk 0:01:34.3]} 32... Kh8 {[%clk 0:00:20.9]} 33. Qf6+ {[%clk 0:01:24.8]}
33... Kg8 {[%clk 0:00:20.9]} 34. Qd8+ {[%clk 0:01:25.5]} 34... Kg7 {[%clk
0:00:20.9]} 35. Qxd5 {[%clk 0:01:26.2]} 35... Qc1+ {[%clk 0:00:18.3]} 36. Kh2
{[%clk 0:01:26.1]} 36... Qf4+ {[%clk 0:00:18.4]} 37. Kg1 {[%clk 0:01:23.9]}
37... Qe3+ {[%clk 0:00:17]} 38. Kf1 {[%clk 0:01:24.5]} 38... b5 {[%clk
0:00:13.2]} 39. Qd6 {[%clk 0:01:17]} 39... Qc1+ {[%clk 0:00:09]} 40. Kf2 {[%clk
0:01:17.4]} 40... Qc2+ {[%clk 0:00:08.8]} 41. Kg3 {[%clk 0:01:17.6]} 41... Qxa2
{[%clk 0:00:09.7]} 42. Qf6+ {[%clk 0:01:13.8]} 42... Kg8 {[%clk 0:00:10]} 43. h4
{[%clk 0:01:10.2]} 43... Qe6 {[%clk 0:00:08]} 44. Qd8+ {[%clk 0:01:08.4]} 44...
Kg7 {[%clk 0:00:08.5]} 45. Qd4 {[%clk 0:01:09.3]} 45... h5 {[%clk 0:00:07.5]}
46. Kh2 {[%clk 0:01:07.8]} 46... Qg4 {[%clk 0:00:06.4]} 47. Qf2 {[%clk
0:01:05.4]} 47... Qe6 {[%clk 0:00:03.7]} 48. Qf4 {[%clk 0:01:04.1]} 48... f6
{[%clk 0:00:03.8]} 49. exf6+ {[%clk 0:00:57]} 49... Qxf6 {[%clk 0:00:04.7]} 50.
Qg3+ {[%clk 0:00:57.3]} 50... Kf7 {[%clk 0:00:04.8]} 51. Qc7+ {[%clk 0:00:57.2]}
51... Kg6 {[%clk 0:00:05.1]} 52. Qg3+ {[%clk 0:00:57.2]} 52... Kf5 {[%clk
0:00:05.6]} 53. Qf3+ {[%clk 0:00:57.3]} 53... Ke6 {[%clk 0:00:05.8]} 54. Qxh5
{[%clk 0:00:57.4]} 54... Qe5+ {[%clk 0:00:05]} 55. Qxe5+ {[%clk 0:00:56.9]}
55... Kxe5 {[%clk 0:00:05.9]} 56. Kg3 {[%clk 0:00:52.4]} 56... b4 {[%clk
0:00:06.3]} 0-1

[Event "Late-Titled-Tuesday-Blitz-September-19-2023"]
[Site "Chess.com"]
[Date "2023.09.19"]
[Round "8"]
[White "TheMagician"]
[Black "RIPOL"]
[Result "0-1"]
[WhiteElo "2247"]
[BlackElo "2422"]
[TimeControl "180+1"]
[EndTime "15:27:30 PDT"]
[Termination "RIPOL won on time"]

1. e4 {[%clk 0:03:00.9]} 1... Nf6 {[%clk 0:02:59.2]} 2. e5 {[%clk 0:02:58]} 2...
Nd5 {[%clk 0:02:58.9]} 3. d4 {[%clk 0:02:58.2]} 3... d6 {[%clk 0:02:58.9]} 4.
exd6 {[%clk 0:02:58]} 4... cxd6 {[%clk 0:02:58.2]} 5. Nf3 {[%clk 0:02:58.8]}
5... g6 {[%clk 0:02:57.3]} 6. g3 {[%clk 0:02:57.9]} 6... Bg7 {[%clk 0:02:56.4]}
7. Bg2 {[%clk 0:02:58]} 7... O-O {[%clk 0:02:54.9]} 8. O-O {[%clk 0:02:58]} 8...
Nf6 {[%clk 0:02:43.6]} 9. c4 {[%clk 0:02:53.4]} 9... Bg4 {[%clk 0:02:38]} 10. h3
{[%clk 0:02:51.4]} 10... Bxf3 {[%clk 0:02:37.4]} 11. Bxf3 {[%clk 0:02:51.2]}
11... Nc6 {[%clk 0:02:37.8]} 12. Nc3 {[%clk 0:02:36.8]} 12... Nd7 {[%clk
0:02:35.5]} 13. Be3 {[%clk 0:02:35.6]} 13... Rc8 {[%clk 0:02:24.5]} 14. Rc1
{[%clk 0:02:31.4]} 14... e5 {[%clk 0:02:20.1]} 15. dxe5 {[%clk 0:02:21.1]} 15...
dxe5 {[%clk 0:02:15]} 16. Bxc6 {[%clk 0:02:12.2]} 16... bxc6 {[%clk 0:01:57.7]}
17. Qa4 {[%clk 0:01:57.3]} 17... Nb6 {[%clk 0:01:43.1]} 18. Qb4 {[%clk
0:01:42.7]} 18... Qc7 {[%clk 0:01:32.3]} 19. Bc5 {[%clk 0:01:27.5]} 19... Rfe8
{[%clk 0:01:30.8]} 20. b3 {[%clk 0:01:23.4]} 20... f5 {[%clk 0:01:16.8]} 21.
Rcd1 {[%clk 0:01:12.1]} 21... e4 {[%clk 0:01:14.8]} 22. Be3 {[%clk 0:01:00]}
22... Nd7 {[%clk 0:00:59.8]} 23. Qd6 {[%clk 0:00:47.7]} 23... Qxd6 {[%clk
0:00:52.6]} 24. Rxd6 {[%clk 0:00:46.5]} 24... Ne5 {[%clk 0:00:47]} 25. Ne2
{[%clk 0:00:33]} 25... a5 {[%clk 0:00:41.1]} 26. Rfd1 {[%clk 0:00:26.4]} 26...
a4 {[%clk 0:00:38.9]} 27. Nf4 {[%clk 0:00:14.4]} 27... axb3 {[%clk 0:00:36]} 28.
axb3 {[%clk 0:00:14.1]} 28... Rb8 {[%clk 0:00:34.2]} 29. Ne6 {[%clk 0:00:12.5]}
29... Bh8 {[%clk 0:00:30.8]} 30. Nc5 {[%clk 0:00:12.4]} 30... Ra8 {[%clk
0:00:18.9]} 31. Kg2 {[%clk 0:00:11.9]} 31... Ra2 {[%clk 0:00:17.3]} 32. Re6
{[%clk 0:00:09.1]} 32... Rxe6 {[%clk 0:00:14.9]} 33. Nxe6 {[%clk 0:00:09.2]}
33... Kf7 {[%clk 0:00:15.3]} 34. Ng5+ {[%clk 0:00:08.5]} 34... Ke8 {[%clk
0:00:14.9]} 35. Bf4 {[%clk 0:00:06.9]} 35... Nd3 {[%clk 0:00:14.5]} 36. Ne6
{[%clk 0:00:04.8]} 36... Rxf2+ {[%clk 0:00:12.4]} 37. Kg1 {[%clk 0:00:05.2]}
37... Rf3 {[%clk 0:00:11.6]} 0-1

[Event "Late-Titled-Tuesday-Blitz-September-19-2023"]
[Site "Chess.com"]
[Date "2023.09.19"]
[Round "8"]
[White "Alexei_Gubajdullin"]
[Black "MikaelyanArman"]
[Result "0-1"]
[WhiteElo "2648"]
[BlackElo "2876"]
[TimeControl "180+1"]
[EndTime "15:27:37 PDT"]
[Termination "MikaelyanArman won on time"]

1. d4 {[%clk 0:03:00.7]} 1... Nf6 {[%clk 0:02:51.6]} 2. Nf3 {[%clk 0:03:00.6]}
2... b6 {[%clk 0:02:51.9]} 3. Bf4 {[%clk 0:03:00.9]} 3... Bb7 {[%clk 0:02:52.4]}
4. e3 {[%clk 0:03:01.3]} 4... g6 {[%clk 0:02:47.5]} 5. Be2 {[%clk 0:03:01]} 5...
Bg7 {[%clk 0:02:47.9]} 6. O-O {[%clk 0:03:01.1]} 6... O-O {[%clk 0:02:48.6]} 7.
h3 {[%clk 0:03:01.2]} 7... d6 {[%clk 0:02:44.7]} 8. a4 {[%clk 0:03:00.6]} 8...
a6 {[%clk 0:02:43.3]} 9. a5 {[%clk 0:02:57.7]} 9... b5 {[%clk 0:02:42.6]} 10. c4
{[%clk 0:02:57.8]} 10... bxc4 {[%clk 0:02:38.8]} 11. Bxc4 {[%clk 0:02:57.5]}
11... Nbd7 {[%clk 0:02:35.1]} 12. Nc3 {[%clk 0:02:56.6]} 12... Ne4 {[%clk
0:02:19.3]} 13. Nxe4 {[%clk 0:02:44.3]} 13... Bxe4 {[%clk 0:02:20.2]} 14. Qe2
{[%clk 0:02:44.4]} 14... Qb8 {[%clk 0:02:05.5]} 15. Bxa6 {[%clk 0:02:35.2]}
15... e5 {[%clk 0:02:01.3]} 16. dxe5 {[%clk 0:02:29.5]} 16... Bxf3 {[%clk
0:01:59.6]} 17. gxf3 {[%clk 0:02:28.8]} 17... Nxe5 {[%clk 0:01:59.7]} 18. Bb5
{[%clk 0:01:59]} 18... Nxf3+ {[%clk 0:01:55]} 19. Kg2 {[%clk 0:01:16.7]} 19...
Qb7 {[%clk 0:01:45.9]} 20. Qxf3 {[%clk 0:00:52.6]} 20... Qxb5 {[%clk 0:01:44.2]}
21. Rac1 {[%clk 0:00:49.1]} 21... Qxa5 {[%clk 0:01:33.9]} 22. Rc2 {[%clk
0:00:43.3]} 22... Rae8 {[%clk 0:00:52.1]} 23. Rfc1 {[%clk 0:00:40.8]} 23... Re7
{[%clk 0:00:51.8]} 24. b4 {[%clk 0:00:40.2]} 24... Qa7 {[%clk 0:00:44]} 25. Rc6
{[%clk 0:00:33.3]} 25... Be5 {[%clk 0:00:32.2]} 26. Bg5 {[%clk 0:00:27.8]} 26...
f6 {[%clk 0:00:30.1]} 27. Bh6 {[%clk 0:00:26.5]} 27... Rfe8 {[%clk 0:00:25.9]}
28. Qd5+ {[%clk 0:00:25]} 28... Kh8 {[%clk 0:00:26.4]} 29. R1c2 {[%clk
0:00:13.9]} 29... Qb8 {[%clk 0:00:20.9]} 30. b5 {[%clk 0:00:14]} 30... f5 {[%clk
0:00:15.6]} 31. Bg5 {[%clk 0:00:11.4]} 31... Rg7 {[%clk 0:00:13.2]} 32. Ra6
{[%clk 0:00:10.8]} 32... h6 {[%clk 0:00:10.8]} 33. Bh4 {[%clk 0:00:09.6]} 33...
g5 {[%clk 0:00:10.7]} 34. Bg3 {[%clk 0:00:09.6]} 34... f4 {[%clk 0:00:11.4]} 35.
Bh2 {[%clk 0:00:08.3]} 35... Qc8 {[%clk 0:00:11.3]} 36. e4 {[%clk 0:00:06.9]}
36... f3+ {[%clk 0:00:11.5]} 37. Kf1 {[%clk 0:00:02.1]} 37... Qxh3+ {[%clk
0:00:11.6]} 38. Ke1 {[%clk 0:00:01.9]} 38... Qxh2 {[%clk 0:00:12.3]} 39. Ra8
{[%clk 0:00:01.8]} 39... Qg1+ {[%clk 0:00:10.6]} 40. Kd2 {[%clk 0:00:01.4]}
40... Qxf2+ {[%clk 0:00:11.5]} 41. Kd3 {[%clk 0:00:01.6]} 41... Qf1+ {[%clk
0:00:12.1]} 0-1

[Event "Late-Titled-Tuesday-Blitz-September-19-2023"]
[Site "Chess.com"]
[Date "2023.09.19"]
[Round "8"]
[White "Nathan_Filgueiras"]
[Black "queen_iryna"]
[Result "1-0"]
[WhiteElo "2512"]
[BlackElo "2383"]
[TimeControl "180+1"]
[EndTime "15:27:42 PDT"]
[Termination "Nathan_Filgueiras won on time"]

1. e4 {[%clk 0:03:00.9]} 1... d6 {[%clk 0:02:59.9]} 2. d4 {[%clk 0:03:00.7]}
2... Nf6 {[%clk 0:03:00.4]} 3. Nc3 {[%clk 0:03:00.4]} 3... e5 {[%clk 0:03:00.7]}
4. Nf3 {[%clk 0:03:00.6]} 4... Nc6 {[%clk 0:03:00.1]} 5. Bb5 {[%clk 0:02:52.1]}
5... exd4 {[%clk 0:02:59.1]} 6. Nxd4 {[%clk 0:02:51.9]} 6... Bd7 {[%clk
0:02:59.5]} 7. O-O {[%clk 0:02:52.3]} 7... Be7 {[%clk 0:02:58.4]} 8. Bf4 {[%clk
0:02:52.1]} 8... O-O {[%clk 0:02:57.4]} 9. Re1 {[%clk 0:02:48.4]} 9... Nxd4
{[%clk 0:02:49.5]} 10. Qxd4 {[%clk 0:02:48.1]} 10... Bc6 {[%clk 0:02:49.1]} 11.
Bxc6 {[%clk 0:02:45]} 11... bxc6 {[%clk 0:02:50]} 12. e5 {[%clk 0:02:44.7]}
12... dxe5 {[%clk 0:02:15.9]} 13. Qxd8 {[%clk 0:02:32.5]} 13... Raxd8 {[%clk
0:02:11.8]} 14. Bxe5 {[%clk 0:02:33.4]} 14... Rd7 {[%clk 0:02:00.8]} 15. Rad1
{[%clk 0:02:30.9]} 15... Rxd1 {[%clk 0:01:50.3]} 16. Rxd1 {[%clk 0:02:30.4]}
16... Rd8 {[%clk 0:01:51.2]} 17. Bxc7 {[%clk 0:02:25.9]} 17... Rxd1+ {[%clk
0:01:49.5]} 18. Nxd1 {[%clk 0:02:26.8]} 18... Nd5 {[%clk 0:01:48.7]} 19. Be5
{[%clk 0:02:26.4]} 19... f6 {[%clk 0:01:48.8]} 20. Bd4 {[%clk 0:02:26.1]} 20...
a6 {[%clk 0:01:46.8]} 21. Kf1 {[%clk 0:02:24.4]} 21... Kf7 {[%clk 0:01:46.5]}
22. g3 {[%clk 0:02:24.7]} 22... Ke6 {[%clk 0:01:46.5]} 23. Ke2 {[%clk
0:02:25.2]} 23... Nb4 {[%clk 0:01:38.6]} 24. c3 {[%clk 0:02:23]} 24... Nd5
{[%clk 0:01:30.7]} 25. Kd3 {[%clk 0:02:20.8]} 25... Nc7 {[%clk 0:01:17.8]} 26.
Be3 {[%clk 0:02:14.6]} 26... Kd5 {[%clk 0:01:15.6]} 27. c4+ {[%clk 0:02:12.4]}
27... Ke6 {[%clk 0:01:14.9]} 28. f4 {[%clk 0:02:11.2]} 28... Kd7 {[%clk
0:01:11.7]} 29. Nf2 {[%clk 0:02:09.9]} 29... Ne6 {[%clk 0:01:11.4]} 30. Ne4
{[%clk 0:02:08.1]} 30... f5 {[%clk 0:01:09.8]} 31. Nd2 {[%clk 0:02:07.4]} 31...
c5 {[%clk 0:01:04.1]} 32. Nf3 {[%clk 0:02:07.1]} 32... Bd6 {[%clk 0:01:02.6]}
33. Bd2 {[%clk 0:02:07.1]} 33... Kc6 {[%clk 0:01:01.4]} 34. Bc3 {[%clk
0:02:07.3]} 34... g6 {[%clk 0:01:00.3]} 35. Be5 {[%clk 0:02:06.2]} 35... Be7
{[%clk 0:01:00.2]} 36. a3 {[%clk 0:02:01.9]} 36... Nf8 {[%clk 0:00:50.1]} 37.
Bc3 {[%clk 0:01:59.9]} 37... Bd6 {[%clk 0:00:48.3]} 38. b4 {[%clk 0:01:59.7]}
38... Nd7 {[%clk 0:00:45.9]} 39. Ne5+ {[%clk 0:01:56]} 39... Bxe5 {[%clk
0:00:45.6]} 40. fxe5 {[%clk 0:01:56.9]} 40... cxb4 {[%clk 0:00:41.2]} 41. axb4
{[%clk 0:01:54.9]} 41... Nf8 {[%clk 0:00:41]} 42. Bd2 {[%clk 0:01:47.4]} 42...
Ne6 {[%clk 0:00:40.2]} 43. Be3 {[%clk 0:01:47.3]} 43... Nc7 {[%clk 0:00:27.6]}
44. Kc3 {[%clk 0:01:37.7]} 44... Ne6 {[%clk 0:00:25.7]} 45. Kb3 {[%clk 0:01:38]}
45... g5 {[%clk 0:00:24.6]} 46. Ka4 {[%clk 0:01:37.8]} 46... f4 {[%clk
0:00:24.8]} 47. Bf2 {[%clk 0:01:35.3]} 47... fxg3 {[%clk 0:00:22.6]} 48. hxg3
{[%clk 0:01:35]} 48... h5 {[%clk 0:00:21.7]} 49. Ka5 {[%clk 0:01:35.1]} 49...
Kb7 {[%clk 0:00:18.7]} 50. b5 {[%clk 0:01:32.2]} 50... axb5 {[%clk 0:00:19.6]}
51. Kxb5 {[%clk 0:01:33]} 51... Ng7 {[%clk 0:00:15.9]} 52. c5 {[%clk 0:01:31.8]}
52... Kc7 {[%clk 0:00:15.6]} 53. c6 {[%clk 0:01:31.7]} 53... Ne6 {[%clk
0:00:14.7]} 54. Bb6+ {[%clk 0:01:31.7]} 54... Kc8 {[%clk 0:00:14.9]} 55. Kc4
{[%clk 0:01:32.3]} 55... h4 {[%clk 0:00:14.7]} 56. Kd5 {[%clk 0:01:29.8]} 56...
h3 {[%clk 0:00:12.5]} 57. Bg1 {[%clk 0:01:29.7]} 57... Ng7 {[%clk 0:00:12.2]}
58. g4 {[%clk 0:01:25.2]} 58... Kc7 {[%clk 0:00:10.4]} 59. e6 {[%clk 0:01:22.5]}
59... Ne8 {[%clk 0:00:06.5]} 60. Bh2+ {[%clk 0:01:21.8]} 60... Kc8 {[%clk
0:00:05.8]} 61. Ke5 {[%clk 0:01:21.9]} 61... Nc7 {[%clk 0:00:02.3]} 62. Kf6
{[%clk 0:01:19.9]} 62... Kd8 {[%clk 0:00:01.9]} 63. e7+ {[%clk 0:01:16.3]} 1-0

[Event "Late-Titled-Tuesday-Blitz-September-19-2023"]
[Site "Chess.com"]
[Date "2023.09.19"]
[Round "8"]
[White "GMJustin"]
[Black "dorpato"]
[Result "1-0"]
[WhiteElo "2242"]
[BlackElo "2010"]
[TimeControl "180+1"]
[EndTime "15:27:44 PDT"]
[Termination "GMJustin won on time"]

1. e4 {[%clk 0:02:36.8]} 1... c5 {[%clk 0:02:59.5]} 2. Nf3 {[%clk 0:02:36.3]}
2... d6 {[%clk 0:02:59.5]} 3. d4 {[%clk 0:02:36]} 3... cxd4 {[%clk 0:03:00.4]}
4. Nxd4 {[%clk 0:02:35.9]} 4... Nf6 {[%clk 0:03:00.8]} 5. Nc3 {[%clk 0:02:36.2]}
5... a6 {[%clk 0:03:01.4]} 6. Bg5 {[%clk 0:02:35.7]} 6... e6 {[%clk 0:03:01.4]}
7. f4 {[%clk 0:02:34.7]} 7... Be7 {[%clk 0:03:02]} 8. Qf3 {[%clk 0:02:33.9]}
8... Qc7 {[%clk 0:03:02.5]} 9. O-O-O {[%clk 0:02:33.1]} 9... Nbd7 {[%clk
0:03:02.3]} 10. g4 {[%clk 0:02:31.7]} 10... h6 {[%clk 0:03:01.4]} 11. Bxf6
{[%clk 0:02:29.4]} 11... Bxf6 {[%clk 0:02:59.6]} 12. h4 {[%clk 0:02:24.9]} 12...
b6 {[%clk 0:02:46.7]} 13. g5 {[%clk 0:01:59]} 13... Bxd4 {[%clk 0:02:36.6]} 14.
Rxd4 {[%clk 0:01:57.7]} 14... Bb7 {[%clk 0:02:35.4]} 15. Rg1 {[%clk 0:01:45.6]}
15... O-O-O {[%clk 0:02:29.5]} 16. Rc4 {[%clk 0:01:42.8]} 16... Bc6 {[%clk
0:02:27.5]} 17. Nd5 {[%clk 0:01:37.6]} 17... exd5 {[%clk 0:02:22]} 18. exd5
{[%clk 0:01:37.8]} 18... Kb8 {[%clk 0:02:03.5]} 19. Rxc6 {[%clk 0:01:27.4]}
19... Qb7 {[%clk 0:02:01.1]} 20. Rxd6 {[%clk 0:01:25.5]} 20... Nc5 {[%clk
0:01:55.9]} 21. Rxd8+ {[%clk 0:01:18.2]} 21... Rxd8 {[%clk 0:01:44.4]} 22. Bg2
{[%clk 0:01:18.8]} 22... Rd6 {[%clk 0:01:33.4]} 23. Qc3 {[%clk 0:01:12.3]} 23...
hxg5 {[%clk 0:01:15.7]} 24. hxg5 {[%clk 0:01:11.3]} 24... g6 {[%clk 0:01:10.8]}
25. b4 {[%clk 0:01:04.8]} 25... Na4 {[%clk 0:01:01.4]} 26. Qe5 {[%clk
0:01:02.1]} 26... Qc7 {[%clk 0:00:56.3]} 27. Qe8+ {[%clk 0:00:36.3]} 27... Ka7
{[%clk 0:00:44.9]} 28. Qxa4 {[%clk 0:00:34.8]} 28... Qc3 {[%clk 0:00:41.8]} 29.
Qb3 {[%clk 0:00:25]} 29... Qa1+ {[%clk 0:00:35.7]} 30. Qb1 {[%clk 0:00:24.6]}
30... Qc3 {[%clk 0:00:21.6]} 31. Rd1 {[%clk 0:00:18.1]} 31... Qe3+ {[%clk
0:00:20.2]} 32. Kb2 {[%clk 0:00:12.6]} 32... Qxf4 {[%clk 0:00:17.4]} 33. Ka1
{[%clk 0:00:09.5]} 33... Qf2 {[%clk 0:00:12]} 34. Be4 {[%clk 0:00:07.4]} 34...
Qf4 {[%clk 0:00:11.2]} 35. c3 {[%clk 0:00:06.3]} 35... Qxg5 {[%clk 0:00:10]} 36.
Qd3 {[%clk 0:00:06]} 36... f5 {[%clk 0:00:08.6]} 37. Bf3 {[%clk 0:00:05.8]}
37... Qf6 {[%clk 0:00:08]} 38. Qd4 {[%clk 0:00:05.8]} 38... Qf7 {[%clk
0:00:06.7]} 39. c4 {[%clk 0:00:05.7]} 39... g5 {[%clk 0:00:05.5]} 40. c5 {[%clk
0:00:05.6]} 40... Rd7 {[%clk 0:00:03.2]} 41. d6 {[%clk 0:00:05.5]} 41... g4
{[%clk 0:00:01.7]} 42. cxb6+ {[%clk 0:00:05.4]} 42... Kb8 {[%clk 0:00:01.2]} 43.
Bd5 {[%clk 0:00:04.4]} 1-0

[Event "Late-Titled-Tuesday-Blitz-September-19-2023"]
[Site "Chess.com"]
[Date "2023.09.19"]
[Round "8"]
[White "ValeriyGrinev"]
[Black "KamlaPasand"]
[Result "0-1"]
[WhiteElo "2547"]
[BlackElo "2462"]
[TimeControl "180+1"]
[EndTime "15:27:45 PDT"]
[Termination "KamlaPasand won on time"]

1. e4 {[%clk 0:03:00.9]} 1... e5 {[%clk 0:02:59.5]} 2. Nf3 {[%clk 0:03:00.6]}
2... Nc6 {[%clk 0:02:59.9]} 3. Bb5 {[%clk 0:02:59.8]} 3... a6 {[%clk 0:02:59.4]}
4. Bxc6 {[%clk 0:02:59.9]} 4... dxc6 {[%clk 0:02:56.5]} 5. Nc3 {[%clk
0:03:00.8]} 5... Bd6 {[%clk 0:02:47.5]} 6. d3 {[%clk 0:02:59.7]} 6... Nf6 {[%clk
0:02:46.4]} 7. h3 {[%clk 0:03:00.2]} 7... h6 {[%clk 0:02:45.8]} 8. Be3 {[%clk
0:03:00.6]} 8... O-O {[%clk 0:02:45.3]} 9. a3 {[%clk 0:03:00.5]} 9... c5 {[%clk
0:02:44.8]} 10. Qd2 {[%clk 0:03:00.5]} 10... Nh5 {[%clk 0:02:41]} 11. g4 {[%clk
0:02:59.6]} 11... Nf4 {[%clk 0:02:37]} 12. O-O-O {[%clk 0:02:55.7]} 12... Ne6
{[%clk 0:02:34.8]} 13. Kb1 {[%clk 0:02:55.3]} 13... b5 {[%clk 0:02:34.4]} 14. g5
{[%clk 0:02:51.3]} 14... h5 {[%clk 0:02:31.5]} 15. g6 {[%clk 0:02:50.6]} 15...
f6 {[%clk 0:02:27.4]} 16. Rdg1 {[%clk 0:02:46.1]} 16... b4 {[%clk 0:02:27]} 17.
axb4 {[%clk 0:02:36.3]} 17... cxb4 {[%clk 0:02:27.9]} 18. Na4 {[%clk 0:02:36.4]}
18... Bd7 {[%clk 0:02:27]} 19. b3 {[%clk 0:02:34.9]} 19... Rb8 {[%clk
0:02:22.8]} 20. Nb2 {[%clk 0:02:34.2]} 20... a5 {[%clk 0:02:22.2]} 21. Nh4
{[%clk 0:02:32.8]} 21... Nf4 {[%clk 0:02:18.1]} 22. Bxf4 {[%clk 0:02:31.7]}
22... exf4 {[%clk 0:02:18.1]} 23. Nf5 {[%clk 0:02:32.6]} 23... Bxf5 {[%clk
0:02:17.9]} 24. exf5 {[%clk 0:02:33.5]} 24... Be5 {[%clk 0:02:17.6]} 25. Na4
{[%clk 0:02:30.8]} 25... Qd4 {[%clk 0:02:16.7]} 26. Ka2 {[%clk 0:02:30.8]} 26...
f3 {[%clk 0:02:08.8]} 27. Re1 {[%clk 0:02:29.1]} 27... Rfd8 {[%clk 0:02:04.1]}
28. Rhf1 {[%clk 0:02:16.2]} 28... c5 {[%clk 0:02:02.8]} 29. Qd1 {[%clk
0:02:10.1]} 29... Qf4 {[%clk 0:01:58.5]} 30. Re4 {[%clk 0:02:09.6]} 30... Qxf5
{[%clk 0:01:58.2]} 31. Re3 {[%clk 0:02:03.4]} 31... Qxg6 {[%clk 0:01:54.7]} 32.
Qxf3 {[%clk 0:02:02.7]} 32... c4 {[%clk 0:01:52.3]} 33. Rd1 {[%clk 0:01:42.4]}
33... cxb3+ {[%clk 0:01:50.7]} 34. cxb3 {[%clk 0:01:42.9]} 34... Rbc8 {[%clk
0:01:47.1]} 35. Re2 {[%clk 0:01:39.1]} 35... Qf7 {[%clk 0:01:40.9]} 36. Rg1
{[%clk 0:01:19.8]} 36... Rd6 {[%clk 0:01:27.8]} 37. Qf5 {[%clk 0:01:05.5]} 37...
Rcd8 {[%clk 0:01:26]} 38. f4 {[%clk 0:01:04.3]} 38... Bd4 {[%clk 0:01:14]} 39.
Rge1 {[%clk 0:00:59.8]} 39... Bc3 {[%clk 0:01:11.5]} 40. Nxc3 {[%clk 0:00:54.3]}
40... bxc3 {[%clk 0:01:11.3]} 41. Re7 {[%clk 0:00:54.9]} 41... Qf8 {[%clk
0:00:57.9]} 42. Qg6 {[%clk 0:00:47.9]} 42... f5 {[%clk 0:00:46.7]} 43. Qxh5
{[%clk 0:00:35.8]} 43... Rh6 {[%clk 0:00:43.5]} 44. Qg5 {[%clk 0:00:31.6]} 44...
Rb8 {[%clk 0:00:36.1]} 45. Rg1 {[%clk 0:00:27.1]} 45... g6 {[%clk 0:00:27.4]}
46. Qg2 {[%clk 0:00:17.4]} 46... Qxe7 {[%clk 0:00:27.1]} 47. Qd5+ {[%clk
0:00:18]} 47... Qf7 {[%clk 0:00:27.3]} 48. Rg2 {[%clk 0:00:18.7]} 48... Qxd5
{[%clk 0:00:27.2]} 0-1